fUST/lending_fUST_20240607
["ID","MTS","AMOUNT","RATE_DAILY","PERIOD"]
[328693430,1717714040166,-594.91,0.00024657,2]
[328693431,1717714040188,-500.0,0.00024657,2]
[328693432,1717714040209,-500.0,0.00024657,2]
[328693433,1717714040233,-500.0,0.00024657,2]
[328693434,1717714040255,-500.0,0.00024657,2]
[328693435,1717714040277,-500.0,0.00024657,2]
[328693436,1717714040299,-1508.92,0.00024657,2]
[328693437,1717714040322,-500.0,0.00024657,2]
[328693438,1717714040345,-500.0,0.00024657,2]
[328693439,1717714040368,-3190.07,0.00024657,2]
[328693440,1717714040392,-3784.1,0.00024657,2]
[328693441,1717714040412,-500.0,0.00024657,2]
[328693442,1717714040433,-500.0,0.00024657,2]
[328693443,1717714040455,-762.09,0.00024657,2]
[328693444,1717714040481,-1463.36,0.00024657,2]
[328693445,1717714040502,-500.0,0.00024657,2]
[328693446,1717714040525,-500.0,0.00024657,2]
[328693447,1717714040546,-639.0,0.00024657,2]
[328693448,1717714040570,-4649.24,0.00024657,2]
[328693449,1717714040592,-637.76,0.00024657,2]
[328693450,1717714040613,-500.0,0.00024657,2]
[328693451,1717714040636,-500.0,0.00024657,2]
[328693452,1717714040661,-718.87,0.00024657,2]
[328693453,1717714040684,-500.0,0.00024657,2]
[328693454,1717714040704,-500.0,0.00024657,2]
[328693455,1717714040726,-2563.13,0.00024657,2]
[328693456,1717714040748,-509.51,0.00024657,2]
[328693457,1717714040768,-500.0,0.00024657,2]
[328693458,1717714040789,-500.0,0.00024657,2]
[328693459,1717714040809,-689.29,0.00024657,2]
[328693460,1717714040832,-1376.8,0.00024657,2]
[328693461,1717714040854,-500.0,0.00024657,2]
[328693462,1717714040874,-392.26549451,0.00024657,2]
[328693578,1717714238791,-2285.54281158,0.00024286,2]
[328693580,1717714238803,-937.01927286,0.00024286,2]
[328693581,1717714238812,-224.02607287,0.00024553,2]
[328693584,1717714238925,-499.77566816,0.00024553,2]
[328693585,1717714238937,-2498.76034341,0.00024553,2]
[328693586,1717714238946,-589.84982428,0.00024657,2]
[328693587,1717714238958,-19.89017572,0.00024657,2]
[328693588,1717714238967,-500.0,0.00024657,2]
[328693589,1717714238977,-500.0,0.00024657,2]
[328693590,1717714238986,-500.0,0.00024657,2]
[328693591,1717714238996,-821.78,0.00024657,2]
[328693592,1717714239006,-1129.69,0.00024657,2]
[328693593,1717714239016,-626.83784362,0.00024657,2]
[328693594,1717714239025,-3216.13,0.00024657,2]
[328693595,1717714239036,-500.0,0.00024657,2]
[328693596,1717714239045,-2347.05,0.00024657,2]
[328693597,1717714239055,-500.0,0.00024657,2]
[328693598,1717714239064,-570.13,0.00024657,2]
[328693599,1717714239074,-500.0,0.00024657,2]
[328693600,1717714239084,-1446.05,0.00024657,2]
[328693601,1717714239094,-500.0,0.00024657,2]
[328693602,1717714239104,-500.0,0.00024657,2]
[328693603,1717714239114,-500.0,0.00024657,2]
[328693604,1717714239123,-500.0,0.00024657,2]
[328693605,1717714239133,-3057.15,0.00024657,2]
[328693606,1717714239142,-3626.43,0.00024657,2]
[328693607,1717714239151,-533.47,0.00024657,2]
[328693608,1717714239160,-500.0,0.00024657,2]
[328693609,1717714239169,-1402.39,0.00024657,2]
[328693610,1717714239179,-500.0,0.00024657,2]
[328693611,1717714239189,-813.75,0.00024657,2]
[328693612,1717714239199,-612.37,0.00024657,2]
[328693613,1717714239208,-500.0,0.00024657,2]
[328693614,1717714239218,-500.0,0.00024657,2]
[328693615,1717714239227,-697.21663593,0.00024657,2]
[328693616,1717714239240,-140.78336407,0.00024657,2]
[328693617,1717714239250,-500.0,0.00024657,2]
[328693618,1717714239259,-594.79714923,0.00024657,2]
[328693619,1717714239269,-4455.52,0.00024657,2]
[328693620,1717714239279,-500.0,0.00024657,2]
[328693621,1717714239288,-688.92,0.00024657,2]
[328693622,1717714239298,-500.0,0.00024657,2]
[328693623,1717714239307,-500.0,0.00024657,2]
[328693624,1717714239316,-500.0,0.00024657,2]
[328693625,1717714239325,-604.16,0.00024657,2]
[328693626,1717714239335,-53.74113762,0.00024657,2]
[328693645,1717714243446,-302.8671087,0.00024657,2]
[328693647,1717714243459,-254.57175368,0.00024657,2]
[328693649,1717714243468,-2456.33,0.00024657,2]
[328693651,1717714243477,-273.75493833,0.00024657,2]
[328693741,1717714244613,-226.24506167,0.00024657,2]
[328693743,1717714244622,-75.76491538,0.00024657,2]
[328693825,1717714247382,-189.41140867,0.00024657,2]
[328693826,1717714247391,-1319.43,0.00024657,2]
[328693828,1717714247401,-392.17257757,0.00024657,2]
[328693859,1717715234153,-2035.79578747,0.00022556,2]
[328693860,1717715234175,-234.55795148,0.00022557,2]
[328693861,1717715234197,-166.816895,0.00022974,2]
[328693862,1717715234220,-168.737676,0.00023056,2]
[328693863,1717715234242,-4236.27632862,0.0002443,2]
[328693864,1717715234262,-166.666666,0.00024493,2]
[328693865,1717715234284,-622.2458101,0.00024556,2]
[328693866,1717715234306,-815.63966964,0.00024557,2]
[328693867,1717715234326,-276.38,0.00024647,3]
[328693868,1717715234346,-829.14,0.00024647,3]
[328693869,1717715234366,-8138.24241978,0.00024656,2]
[328693870,1717715236136,-4341.20736251,0.00024656,2]
[328693950,1717715432558,-67.80414736,0.00024493,2]
[328693951,1717715432571,-98.86251864,0.00024493,2]
[328693952,1717715432580,-544.46508382,0.00024557,2]
[328693953,1717715432591,-23727.38710583,0.00024656,2]
[328693954,1717715432600,-500.0,0.00024656,2]
[328693955,1717715432610,-523.9080619,0.00024656,2]
[328693956,1717715432620,-300.1342549,0.00024656,2]
[328693957,1717715432631,-2093.42945296,0.00024657,2]
[328693958,1717715432641,-11589.69872632,0.00024657,2]
[328693959,1717715432652,-401.86919827,0.00024657,2]
[328693960,1717715432664,-310.57595421,0.00024657,2]
[328693961,1717715432678,-538.17,0.00024657,2]
[328693962,1717715432687,-556.06,0.00024657,2]
[328693963,1717715432697,-153.210003,0.00024657,2]
[328693964,1717715432707,-500.0,0.00024657,2]
[328693965,1717715432717,-500.0,0.00024657,2]
[328693966,1717715432726,-500.0,0.00024657,2]
[328693967,1717715432736,-500.0,0.00024657,2]
[328693968,1717715432747,-500.0,0.00024657,2]
[328693969,1717715432757,-500.0,0.00024657,2]
[328693970,1717715432766,-511.25,0.00024657,2]
[328693971,1717715432775,-500.0,0.00024657,2]
[328693972,1717715432785,-617.09,0.00024657,2]
[328693973,1717715432795,-500.0,0.00024657,2]
[328693974,1717715432805,-500.0,0.00024657,2]
[328693975,1717715432815,-803.08,0.00024657,2]
[328693976,1717715432825,-730.34,0.00024657,2]
[328693977,1717715432834,-41.43983653,0.00024657,2]
[328693981,1717715438584,-458.56016347,0.00024657,2]
[328693982,1717715438594,-540.43459649,0.00024657,2]
[328693983,1717715438606,-120.13540351,0.00024657,2]
[328693984,1717715438615,-787.54,0.00024657,2]
[328693985,1717715438624,-500.0,0.00024657,2]
[328693986,1717715438635,-1028.58,0.00024657,2]
[328693987,1717715438644,-673.83,0.00024657,2]
[328693988,1717715438653,-487.95319314,0.00024657,2]
[328693989,1717715438668,-12.04680686,0.00024657,2]
[328693990,1717715438678,-3082.13,0.00024657,2]
[328693991,1717715438687,-500.0,0.00024657,2]
[328693992,1717715438697,-500.0,0.00024657,2]
[328693993,1717715438707,-500.0,0.00024657,2]
[328693994,1717715438717,-500.0,0.00024657,2]
[328693995,1717715438726,-546.37,0.00024657,2]
[328693996,1717715438735,-2249.26,0.00024657,2]
[328693997,1717715438746,-1385.8,0.00024657,2]
[328693998,1717715438756,-3475.33,0.00024657,2]
[328693999,1717715438765,-500.0,0.00024657,2]
[328694000,1717715438774,-1418.25897954,0.00024657,2]
[328694040,1717715443864,-418.58602612,0.00024657,2]
[328694047,1717715449751,156.37196765,0.00022557,2]
[328694048,1717715482266,36.25717616,0.00022557,2]
[328694049,1717715482292,124.75126057,0.00022557,2]
[328694051,1717715483281,27.24873943,9.999e-05,2]
[328694052,1717715483303,254.5,9.999e-05,2]
[328694053,1717715483327,175.81067528,9.999e-05,2]
[328694054,1717715483354,505.29243104,9.999e-05,2]
[328694055,1717715536908,187.27413947,9.999e-05,2]
[328694061,1717716434166,-1982.61645022,0.00014973,2]
[328694062,1717716434188,-7914.74227919,0.00014974,2]
[328694063,1717716434213,-154.95351395,0.00015,2]
[328694064,1717716434235,-162.99512303,0.00019,2]
[328694065,1717716434256,-471.94717193,0.00020456,2]
[328694066,1717716434279,-150.0,0.00020457,2]
[328694067,1717716434302,-433.39353122,0.00021,2]
[328694068,1717716434326,-166.74178,0.00021918,2]
[328694069,1717716434351,-863.48239645,0.00022083,2]
[328694078,1717716552137,-2701.65970815,0.00022083,2]
[328694079,1717716552159,-624.26526648,0.00022556,2]
[328694080,1717716552181,-164.02008532,0.00022557,2]
[328694237,1717716638757,-646.7302538,0.00023738,2]
[328694239,1717716638767,-2208.84784026,0.00024388,2]
[328694241,1717716638777,-166.74178,0.00024482,2]
[328694243,1717716638786,-166.666666,0.00024493,2]
[328694245,1717716638796,-730.81883406,0.00024557,2]
[328694247,1717716638806,-270.0,0.000246,2]
[328694249,1717716638815,-1000.0,0.000246,2]
[328694251,1717716638825,-206.83933292,0.00024656,2]
[328694253,1717716638835,-286.38202963,0.00024656,2]
[328694255,1717716638845,-500.0,0.00024657,7]
[328694257,1717716638855,-479.37,0.00024657,2]
[328694259,1717716638864,-431.85834784,0.00024657,2]
[328694261,1717716638876,-68.14165216,0.00024657,2]
[328694263,1717716638885,-500.0,0.00024657,2]
[328694265,1717716638894,-500.0,0.00024657,2]
[328694267,1717716638903,-500.0,0.00024657,2]
[328694269,1717716638912,-691.80807405,0.00024657,2]
[328694271,1717716638924,-170.03192595,0.00024657,2]
[328694273,1717716638934,-408.06,0.00024657,2]
[328694275,1717716638943,-769.62,0.00024657,2]
[328694276,1717716638954,-653.69,0.00024657,2]
[328694277,1717716638964,-500.0,0.00024657,2]
[328694278,1717716638973,-500.0,0.00024657,2]
[328694279,1717716638982,-571.64,0.00024657,2]
[328694281,1717716638992,-500.0,0.00024657,2]
[328694283,1717716639002,-291.66365839,0.00024657,2]
[328694285,1717716639012,-500.0,0.00024657,2]
[328694286,1717716639026,-154.24612668,0.00024657,2]
[328694287,1717716639036,-500.0,0.00024657,2]
[328694288,1717716639046,-653.87,0.00024657,2]
[328694289,1717716639056,-500.0,0.00024657,2]
[328694290,1717716639067,-341.14664211,0.00024657,2]
[328694291,1717716639079,-158.85335789,0.00024657,2]
[328694292,1717716639089,-309.27304359,0.00024657,2]
[328694293,1717716639104,-453.13695641,0.00024657,2]
[328694294,1717716639115,-500.0,0.00024657,2]
[328694295,1717716639125,-500.0,0.00024657,2]
[328694296,1717716639135,-500.0,0.00024657,2]
[328694297,1717716639145,-500.0,0.00024657,2]
[328694298,1717716639155,-500.0,0.00024657,2]
[328694299,1717716639165,-2416.49,0.00024657,2]
[328694300,1717716639175,-584.34,0.00024657,2]
[328694301,1717716639186,-500.0,0.00024657,2]
[328694302,1717716639196,-1306.12,0.00024657,2]
[328694303,1717716639206,-1299.26,0.00024657,2]
[328694304,1717716639216,-254.5,0.00024657,2]
[328694305,1717716639226,-500.0,0.00024657,2]
[328694306,1717716639236,-1069.06,0.00024657,2]
[328694307,1717716639246,-500.0,0.00024657,2]
[328694308,1717716639256,-1411.39,0.00024657,2]
[328694309,1717716639267,-560.17,0.00024657,2]
[328694310,1717716639276,-2275.98,0.00024657,2]
[328694311,1717716639286,-526.6,0.00024657,2]
[328694312,1717716639296,-500.0,0.00024657,2]
[328694313,1717716639305,-633.05,0.00024657,2]
[328694314,1717716639315,-500.0,0.00024657,2]
[328694315,1717716639325,-3140.87,0.00024657,2]
[328694316,1717716639336,-500.0,0.00024657,2]
[328694317,1717716639346,-2853.23,0.00024657,2]
[328694318,1717716639356,-3545.48,0.00024657,2]
[328694319,1717716639366,-523.61,0.00024657,2]
[328694320,1717716639377,-500.0,0.00024657,2]
[328694321,1717716639387,-754.73,0.00024657,2]
[328694322,1717716639397,-586.86,0.00024657,2]
[328694323,1717716639407,-1443.3,0.00024657,2]
[328694324,1717716639417,-4467.95,0.00024657,2]
[328694325,1717716639427,-500.0,0.00024657,2]
[328694326,1717716639437,-500.0,0.00024657,2]
[328694327,1717716639448,-585.72,0.00024657,2]
[328694328,1717716639459,-500.0,0.00024657,2]
[328694329,1717716639470,-500.0,0.00024657,2]
[328694330,1717716639480,-265.65153462,0.00024657,2]
[328694331,1717716639491,-660.21,0.00024657,2]
[328694332,1717716639501,-500.0,0.00024657,2]
[328694333,1717716639511,-730.81883402,0.0002466,2]
[328694334,1717716639521,-730.81883402,0.00024762,2]
[328694335,1717716639532,-730.81883402,0.00024865,2]
[328694336,1717716639542,-151.0,0.00024906,2]
[328694337,1717716639553,-151.0,0.00024906,2]
[328694338,1717716639563,-151.561544,0.00024906,2]
[328694339,1717716639573,-151.0,0.00024906,2]
[328694340,1717716639584,-564.559366,0.00024906,2]
[328694341,1717716639594,-564.559366,0.00024906,2]
[328694342,1717716639604,-552.76,0.00024909,3]
[328694343,1717716639614,-151.0,0.00024915,2]
[328694344,1717716639626,-624.042229,0.00024915,2]
[328694345,1717716639637,-624.042229,0.00024915,2]
[328694346,1717716639648,-226.324008,0.00024915,2]
[328694347,1717716639659,-151.0,0.00024915,2]
[328694348,1717716639669,-180.966864,0.00024915,2]
[328694349,1717716639679,-180.966864,0.00024915,2]
[328694350,1717716639689,-151.0,0.00024915,2]
[328694351,1717716639699,-151.0,0.00024915,2]
[328694352,1717716639709,-151.0,0.00024916,2]
[328694353,1717716639719,-151.0,0.00024916,2]
[328694354,1717716639729,-151.0,0.00024916,2]
[328694355,1717716639738,-151.0,0.00024916,2]
[328694356,1717716639748,-151.0,0.00024916,2]
[328694357,1717716639758,-564.559366,0.00024916,2]
[328694358,1717716639769,-564.559366,0.00024916,2]
[328694359,1717716639779,-11002.02,0.00024918,3]
[328694360,1717716639789,-9168.35,0.00024918,3]
[328694361,1717716639799,-346.54820886,0.00024919,7]
[328694362,1717716639809,-151.0,0.00024919,2]
[328694363,1717716639819,-180.966864,0.00024919,2]
[328694364,1717716639829,-180.966864,0.00024919,2]
[328694365,1717716639839,-151.0,0.00024919,2]
[328694366,1717716639849,-188.720655,0.00024919,2]
[328694367,1717716639859,-188.720655,0.00024919,2]
[328694368,1717716639868,-300.732448,0.00024919,2]
[328694369,1717716639879,-151.0,0.00024919,2]
[328694370,1717716639888,-151.0,0.00024919,2]
[328694371,1717716639898,-151.0,0.00024919,2]
[328694372,1717716639908,-151.0,0.00024919,2]
[328694373,1717716639919,-13202.43,0.00024919,3]
[328694374,1717716639929,-653.483954,0.00024919,2]
[328694375,1717716639939,-653.483954,0.00024919,2]
[328694376,1717716639949,-158.871462,0.00024919,2]
[328694377,1717716639959,-172.18959,0.00024919,2]
[328694378,1717716639970,-158.871462,0.00024919,2]
[328694379,1717716639980,-621.33651269,0.00024925,2]
[328694380,1717716639989,-151.0,0.00024927,2]
[328694381,1717716639999,-219.224944,0.00024927,2]
[328694382,1717716640008,-151.0,0.00024927,2]
[328694383,1717716640021,-184.07160823,0.00024927,2]
[328694384,1717716640031,-539.02206243,0.00024927,2]
[328694385,1717716640041,-568.30770077,0.00024927,2]
[328694386,1717716640051,-500.0,0.00024927,2]
[328694387,1717716640063,-368.9629646,0.00024927,2]
[328694388,1717716640072,-500.0,0.00024927,2]
[328694389,1717716640082,-500.0,0.00024927,2]
[328694390,1717716640091,-500.0,0.00024927,2]
[328694391,1717716640103,-164.8847064,0.00024927,2]
[328694392,1717716640113,-500.0,0.00024927,2]
[328694393,1717716640124,-500.0,0.00024927,2]
[328694394,1717716640133,-649.81339646,0.00024927,2]
[328694395,1717716640143,-500.0,0.00024927,2]
[328694396,1717716640153,-500.0,0.00024927,2]
[328694397,1717716640163,-500.0,0.00024927,2]
[328694398,1717716640172,-500.0,0.00024927,2]
[328694399,1717716640183,-500.0,0.00024927,2]
[328694400,1717716640193,-500.0,0.00024927,2]
[328694401,1717716640204,-500.0,0.00024927,2]
[328694402,1717716640214,-500.0,0.00024927,2]
[328694403,1717716640227,-500.0,0.00024927,2]
[328694404,1717716640238,-500.0,0.00024927,2]
[328694405,1717716640248,-500.0,0.00024927,2]
[328694406,1717716640258,-500.0,0.00024927,2]
[328694407,1717716640269,-500.0,0.00024927,2]
[328694408,1717716640279,-500.0,0.00024927,2]
[328694409,1717716640288,-500.0,0.00024927,2]
[328694410,1717716640298,-500.0,0.00024927,2]
[328694411,1717716640307,-500.0,0.00024927,2]
[328694412,1717716640317,-500.0,0.00024927,2]
[328694413,1717716640327,-151.0,0.00024928,2]
[328694414,1717716640337,-151.0,0.00024928,2]
[328694415,1717716640347,-151.0,0.00024928,2]
[328694416,1717716640358,-151.0,0.00024928,2]
[328694417,1717716640368,-188.720655,0.00024928,2]
[328694418,1717716640378,-188.720655,0.00024928,2]
[328694419,1717716640388,-151.0,0.00024928,2]
[328694420,1717716640399,-151.0,0.00024928,2]
[328694421,1717716640409,-206.466269,0.00024928,2]
[328694422,1717716640419,-653.483954,0.00024928,2]
[328694423,1717716640429,-653.483954,0.00024928,2]
[328694424,1717716640439,-158.871462,0.00024928,2]
[328694425,1717716640449,-172.18959,0.00024928,2]
[328694426,1717716640460,-158.871462,0.00024928,2]
[328694427,1717716640471,-151.0,0.00024928,2]
[328694428,1717716640481,-153.351491,0.00024929,2]
[328694429,1717716640491,-151.0,0.00024929,2]
[328694430,1717716640501,-151.0,0.00024929,2]
[328694431,1717716640511,-564.559366,0.00024929,2]
[328694432,1717716640521,-564.559366,0.00024929,2]
[328694433,1717716640531,-624.042229,0.00024929,2]
[328694434,1717716640541,-624.042229,0.00024929,2]
[328694435,1717716640551,-284.808157,0.0002493,2]
[328694436,1717716640560,-235.34101101,0.00024931,7]
[328694437,1717716640570,-500.0,0.00024931,2]
[328694438,1717716640581,-500.0,0.00024931,2]
[328694439,1717716640591,-500.0,0.00024931,2]
[328694440,1717716640601,-861.84,0.00024931,2]
[328694441,1717716640611,-769.62,0.00024931,2]
[328694442,1717716640622,-653.69,0.00024931,2]
[328694443,1717716640632,-500.0,0.00024931,2]
[328694444,1717716640643,-500.0,0.00024931,2]
[328694445,1717716640653,-151.0,0.00024931,2]
[328694446,1717716640664,-151.0,0.00024931,2]
[328694447,1717716640674,-571.64,0.00024931,2]
[328694448,1717716640685,-500.0,0.00024931,2]
[328694449,1717716640695,-295.7258,0.00024931,2]
[328694450,1717716640706,-500.0,0.00024931,2]
[328694451,1717716640716,-653.87,0.00024931,2]
[328694452,1717716640727,-500.0,0.00024931,2]
[328694453,1717716640737,-151.0,0.00024931,2]
[328694454,1717716640747,-151.0,0.00024931,2]
[328694455,1717716640758,-151.0,0.00024931,2]
[328694456,1717716640777,-151.0,0.00024931,2]
[328694457,1717716640790,-500.0,0.00024931,2]
[328694458,1717716640801,-762.41,0.00024931,2]
[328694459,1717716640810,-500.0,0.00024931,2]
[328694460,1717716640821,-151.0,0.00024931,2]
[328694461,1717716640831,-151.0,0.00024931,2]
[328694462,1717716640841,-151.0,0.00024931,2]
[328694463,1717716640851,-151.0,0.00024931,2]
[328694464,1717716640860,-500.0,0.00024931,2]
[328694465,1717716640870,-500.0,0.00024931,2]
[328694466,1717716640880,-500.0,0.00024931,2]
[328694467,1717716640890,-2416.49,0.00024931,2]
[328694468,1717716640900,-584.34,0.00024931,2]
[328694469,1717716641073,-564.559366,0.00024931,2]
[328694470,1717716641083,-564.559366,0.00024931,2]
[328694472,1717716641093,-564.559366,0.00024931,2]
[328694474,1717716641104,-564.559366,0.00024931,2]
[328694476,1717716641114,-564.559366,0.00024931,2]
[328694477,1717716641123,-564.559366,0.00024931,2]
[328694478,1717716641133,-564.559366,0.00024931,2]
[328694479,1717716641142,-500.0,0.00024931,2]
[328694480,1717716641152,-564.559366,0.00024931,2]
[328694481,1717716641161,-1306.12,0.00024931,2]
[328694482,1717716641171,-1299.26,0.00024931,2]
[328694483,1717716641180,-500.0,0.00024931,2]
[328694484,1717716641191,-1069.06,0.00024931,2]
[328694485,1717716641200,-624.042229,0.00024931,2]
[328694486,1717716641210,-624.042229,0.00024931,2]
[328694487,1717716641219,-624.042229,0.00024931,2]
[328694488,1717716641229,-624.042229,0.00024931,2]
[328694489,1717716641239,-624.042229,0.00024931,2]
[328694490,1717716641249,-624.042229,0.00024931,2]
[328694491,1717716641259,-500.0,0.00024931,2]
[328694492,1717716641268,-1411.39,0.00024931,2]
[328694493,1717716641278,-560.17,0.00024931,2]
[328694494,1717716641288,-2275.98,0.00024931,2]
[328694495,1717716641298,-500.0,0.00024931,2]
[328694496,1717716641308,-633.05,0.00024931,2]
[328694497,1717716641318,-500.0,0.00024931,2]
[328694498,1717716641327,-3140.87,0.00024931,2]
[328694499,1717716641337,-500.0,0.00024931,2]
[328694500,1717716641347,-2853.23,0.00024931,2]
[328694501,1717716641357,-180.966864,0.00024931,2]
[328694502,1717716641366,-3545.48,0.00024931,2]
[328694503,1717716641377,-523.61,0.00024931,2]
[328694504,1717716641387,-180.966864,0.00024931,2]
[328694505,1717716641397,-180.966864,0.00024931,2]
[328694506,1717716641407,-180.966864,0.00024931,2]
[328694507,1717716641417,-180.966864,0.00024931,2]
[328694508,1717716641427,-180.966864,0.00024931,2]
[328694509,1717716641437,-180.966864,0.00024931,2]
[328694510,1717716641447,-180.966864,0.00024931,2]
[328694511,1717716641457,-500.0,0.00024931,2]
[328694514,1717716641467,-754.73,0.00024931,2]
[328694516,1717716641477,-586.86,0.00024931,2]
[328694518,1717716641487,-151.0,0.00024931,2]
[328694519,1717716641497,-188.720655,0.00024931,2]
[328694520,1717716641508,-188.720655,0.00024931,2]
[328694521,1717716641518,-188.720655,0.00024931,2]
[328694522,1717716641530,-188.720655,0.00024931,2]
[328694523,1717716641540,-188.720655,0.00024931,2]
[328694524,1717716641550,-1443.3,0.00024931,2]
[328694525,1717716641560,-188.720655,0.00024931,2]
[328694526,1717716641574,-188.720655,0.00024931,2]
[328694527,1717716641585,-188.720655,0.00024931,2]
[328694528,1717716641595,-151.0,0.00024931,2]
[328694529,1717716641605,-151.0,0.00024931,2]
[328694530,1717716641615,-151.0,0.00024931,2]
[328694531,1717716641625,-151.0,0.00024931,2]
[328694532,1717716641635,-4467.95,0.00024931,2]
[328694533,1717716641645,-592.0,0.00024931,2]
[328694534,1717716641655,-151.0,0.00024931,2]
[328694535,1717716641664,-151.0,0.00024931,2]
[328694536,1717716641674,-151.0,0.00024931,2]
[328694537,1717716641684,-151.0,0.00024931,2]
[328694538,1717716641694,-500.0,0.00024931,2]
[328694539,1717716641704,-585.72,0.00024931,2]
[328694540,1717716641715,-500.0,0.00024931,2]
[328694541,1717716641725,-653.483954,0.00024931,2]
[328694542,1717716641736,-653.483954,0.00024931,2]
[328694543,1717716641746,-653.483954,0.00024931,2]
[328694544,1717716641757,-653.483954,0.00024931,2]
[328694545,1717716641766,-500.0,0.00024931,2]
[328694546,1717716641776,-653.483954,0.00024931,2]
[328694547,1717716641786,-653.483954,0.00024931,2]
[328694548,1717716641796,-653.483954,0.00024931,2]
[328694549,1717716641805,-653.483954,0.00024931,2]
[328694550,1717716641815,-660.21,0.00024931,2]
[328694551,1717716641824,-500.0,0.00024931,2]
[328694552,1717716641834,-158.871462,0.00024931,2]
[328694553,1717716641843,-158.871462,0.00024931,2]
[328694554,1717716641852,-158.871462,0.00024931,2]
[328694555,1717716641861,-158.871462,0.00024931,2]
[328694556,1717716641870,-172.18959,0.00024931,2]
[328694557,1717716641880,-172.18959,0.00024931,2]
[328694558,1717716641889,-172.18959,0.00024931,2]
[328694559,1717716641898,-172.18959,0.00024931,2]
[328694560,1717716641907,-158.871462,0.00024931,2]
[328694561,1717716641916,-158.871462,0.00024931,2]
[328694562,1717716641926,-158.871462,0.00024931,2]
[328694563,1717716641935,-203.0,0.00024932,2]
[328694564,1717716641944,-624.042229,0.00024932,2]
[328694565,1717716641953,-624.042229,0.00024932,2]
[328694566,1717716641964,-730.81883402,0.00024967,2]
[328694567,1717716641975,-203.0,0.00025,2]
[328694568,1717716641985,-151.0,0.00025,2]
[328694569,1717716641994,-564.559366,0.00025,2]
[328694570,1717716642004,-564.559366,0.00025,2]
[328694571,1717716642015,-180.966864,0.00025,2]
[328694572,1717716642028,-180.966864,0.00025,2]
[328694573,1717716642038,-180.966864,0.00025,2]
[328694574,1717716642048,-180.966864,0.00025,2]
[328694575,1717716642058,-188.720655,0.00025,2]
[328694576,1717716642068,-188.720655,0.00025,2]
[328694577,1717716642078,-151.0,0.00025,2]
[328694578,1717716642087,-151.0,0.00025,2]
[328694579,1717716642098,-653.483954,0.00025,2]
[328694580,1717716642108,-653.483954,0.00025,2]
[328694581,1717716642118,-158.871462,0.00025,2]
[328694582,1717716642127,-172.18959,0.00025,2]
[328694583,1717716642137,-497.0,0.00025067,2]
[328694584,1717716642147,-15943.6862714,0.00025103,2]
[328694585,1717716642164,-5320.89892293,0.00025103,2]
[328694605,1717716643083,-172.18959,0.00024919,2]
[328694607,1717716643097,-3803.57518612,0.00024921,3]
[328694610,1717716643111,-1281.10807788,0.00024921,3]
[328695051,1717716646949,-500.0,0.00024657,2]
[328695054,1717716646960,-172.18959,0.00024928,2]
[328695056,1717716646972,-151.0,0.00024928,2]
[328695059,1717716646983,-151.0,0.00024931,2]
[328695062,1717716646994,-158.871462,0.00024931,2]
[328695065,1717716647006,-34.12829609,0.00024931,2]
[328695941,1717716656122,150.0,0.000229,2]
[328697355,1717716671010,116.89970594,0.00021984,2]